bitfinex/quotes_SOLUSD_20241117
["timestamp","ask_amount","ask_price","bid_price","bid_amount"]
[1731866794202,4.61885462,233.97,233.88,6.74379297]
[1731866794406,0.21916462,233.95,233.88,6.74379297]
[1731866794604,0.09367462,233.93,233.88,6.74379297]
[1731866794908,0.21916462,233.93,233.88,6.74379297]
[1731866795099,0.21916462,233.91,233.88,6.74379297]
[1731866797414,0.21916462,233.91,233.85,22.7898646]
[1731866797608,0.21916462,233.91,233.88,6.74379297]
[1731866798829,0.09367462,233.89,233.88,6.74379297]
[1731866803426,0.09367462,233.89,233.85,18.5137646]
[1731866803598,4.49466462,233.89,233.85,18.5137646]
[1731866803801,4.49466462,233.89,233.86,6.74379297]
[1731866804025,0.21916462,233.87,233.85,2.1822646]
[1731866804201,0.34465462,233.87,233.86,6.74379297]
[1731866811630,0.34465462,233.87,233.85,2.1822646]
[1731866812012,0.34465462,233.87,233.85,8.92605757]
[1731866815529,0.34465462,233.87,233.85,2.1822646]
[1731866815722,0.34465462,233.87,233.85,8.92605757]
[1731866816110,0.34465462,233.87,233.85,8.42605757]
[1731866819230,6.6534988,234.02,233.87,15.0134]
[1731866819440,4.2733,234.01,233.95,6.74379297]
[1731866819620,0.09367462,234.0,233.87,15.0134]
[1731866819929,21.70039297,234.01,233.87,15.0134]
[1731866820134,21.70039297,234.01,233.92,6.74379297]
[1731866820335,0.09367462,234.0,233.92,6.74379297]
[1731866820722,0.09367462,233.98,233.92,6.74379297]
[1731866820926,0.09367462,233.98,233.87,15.0134]
[1731866821231,24.12153862,233.98,233.87,15.0134]
[1731866821437,24.12153862,233.98,233.89,6.74379297]
[1731866821738,24.12153862,233.98,233.91,6.74379297]
[1731866822235,4.2736,233.99,233.95,6.74379297]
[1731866822739,4.36657462,234.03,233.95,6.74379297]
[1731866823435,24.12153862,233.97,233.87,15.0134]
[1731866823640,24.12153862,233.97,233.89,6.74379297]
[1731866824816,0.34465462,233.95,233.89,6.74379297]
[1731866825829,0.21916462,233.91,233.89,6.74379297]
[1731866826246,0.21916462,233.91,233.87,15.0134]
[1731866826619,0.21916462,233.91,233.89,6.74379297]
[1731866827132,0.21916462,233.91,233.87,15.0134]
[1731866827329,0.21916462,233.91,233.89,6.74379297]
[1731866827839,4.49426462,233.91,233.89,6.74379297]
[1731866830548,0.21916462,233.91,233.89,6.74379297]
[1731866831818,0.21916462,233.89,233.85,1.6822646]
[1731866832127,0.21916462,233.87,233.85,1.6822646]
[1731866832821,0.34465462,233.86,233.85,1.6822646]
[1731866833017,7.08844759,233.86,233.85,1.6822646]
[1731866833631,24.12153862,233.86,233.85,1.6822646]
[1731866833821,30.86533159,233.86,233.85,1.6822646]
[1731866834040,35.14133159,233.86,233.85,1.6822646]
[1731866834240,35.14133159,233.86,233.7,15.7967]
[1731866834241,0.09367462,233.82,233.7,15.7967]
[1731866834450,0.09367462,233.77,233.7,15.7967]
[1731866834650,23.87055862,233.75,233.67,6.74379297]
[1731866834819,23.87055862,233.75,233.65,26.4964]
[1731866835025,28.65512643,233.75,233.65,26.4964]
[1731866835222,23.87055862,233.73,233.67,6.74379297]
[1731866835429,23.87055862,233.73,233.65,22.54049297]
[1731866835848,0.09367462,233.71,233.65,22.54049297]
[1731866836027,0.09367462,233.71,233.65,15.7967]
[1731866836222,0.09367462,233.69,233.65,22.54049297]
[1731866837343,0.09367462,233.69,233.65,15.7967]
[1731866837523,0.21916462,233.67,233.65,15.7967]
[1731866838249,0.21916462,233.67,233.64,0.4352475]
[1731866839426,0.34465462,233.65,233.64,0.4352475]
[1731866840255,30.86533159,233.65,233.64,0.4352475]
[1731866841351,98.43410347,233.65,233.64,0.0590475]
[1731866841550,76.38794385,233.65,233.64,0.0590475]
[1731866842256,0.09367462,233.61,233.5,6.74379297]
[1731866842442,23.87055862,233.58,233.5,6.74379297]
[1731866843233,24.12153862,233.56,233.5,6.74379297]
[1731866843434,24.12153862,233.56,233.47,15.8757]
[1731866843755,24.12153862,233.56,233.49,6.74379297]
[1731866843962,24.12153862,233.56,233.49,6.24379297]
[1731866844256,0.34465462,233.56,233.55,6.74379297]
[1731866844653,0.34465462,233.56,233.47,30.8667]
[1731866844854,0.34465462,233.56,233.5,6.74379297]
[1731866845256,0.34465462,233.54,233.47,26.5837]
[1731866845450,0.34465462,233.54,233.49,6.74379297]
[1731866845756,0.09367462,233.52,233.41,15.4724129]
[1731866845944,0.34465462,233.52,233.45,6.74379297]
[1731866846145,0.34465462,233.52,233.47,6.74379297]
[1731866846954,24.12153862,233.5,233.47,6.74379297]
[1731866847333,24.12153862,233.5,233.45,6.74379297]
[1731866847736,24.12153862,233.5,233.41,27.0639129]
[1731866847737,24.12153862,233.5,233.41,16.3536129]
[1731866848051,24.12153862,233.5,233.43,6.74379297]
[1731866848261,24.06020889,233.5,233.43,6.74379297]
[1731866848744,24.027864,233.48,233.41,23.09740587]
[1731866848944,24.027864,233.46,233.41,23.09740587]
[1731866849260,24.027864,233.46,233.41,0.4779129]
[1731866850536,0.21916462,233.45,233.41,0.4779129]
[1731866850763,0.21916462,233.42,233.41,0.4779129]
[1731866850957,0.34465462,233.42,233.41,0.4779129]
[1731866851162,0.09367462,233.41,233.36,16.4808]
[1731866851462,0.09367462,233.41,233.39,6.74379297]
[1731866851838,0.09367462,233.41,233.36,16.4808]
[1731866852061,0.09367462,233.41,233.36,23.22459297]
[1731866852437,0.21916462,233.41,233.36,16.4808]
[1731866852639,0.21916462,233.41,233.34,6.1858]
[1731866852640,0.09367462,233.37,233.3,10.7153]
[1731866852941,0.09367462,233.37,233.35,6.74379297]
[1731866853240,4.2835,233.45,233.35,6.74379297]
[1731866853446,0.09367462,233.43,233.3,15.0016]
[1731866853645,23.776884,233.44,233.38,6.74379297]
[1731866853863,23.776884,233.44,233.4,6.74379297]
[1731866854962,0.34465462,233.43,233.4,6.74379297]
[1731866857164,24.12153862,233.41,233.38,6.74379297]
[1731866857465,24.12153862,233.41,233.36,6.74379297]
[1731866858563,24.027864,233.46,233.4,6.74379297]
[1731866858863,0.09367462,233.45,233.4,6.74379297]
[1731866859058,4.2837,233.44,233.38,6.74379297]
[1731866859371,0.34465462,233.43,233.38,6.74379297]
[1731866860244,0.21916462,233.41,233.38,6.74379297]
[1731866860573,0.09367462,233.41,233.38,6.74379297]
[1731866862946,4.2826,233.5,233.4,6.74379297]
[1731866863141,4.2826,233.5,233.45,6.74379297]
[1731866863541,4.2823,233.52,233.47,6.74379297]
[1731866863966,0.09367462,233.51,233.47,6.74379297]
[1731866864471,4.2811,233.58,233.49,6.74379297]
[1731866864670,4.2811,233.58,233.51,6.74379297]
[1731866865975,0.12549,233.55,233.51,6.74379297]
[1731866866268,0.12549,233.55,233.51,10.56483997]
[1731866867172,0.12549,233.55,233.03,26.29719592]
[1731866867173,0.12549,233.55,233.53,10.56483997]
[1731866867373,32.1009,233.64,233.53,10.56483997]
[1731866867374,4.2811,233.59,233.53,10.56483997]
[1731866867676,0.09367462,233.58,233.53,10.56483997]
[1731866868172,0.09367462,233.58,233.52,15.4449]
[1731866868373,0.09367462,233.58,233.51,10.56483997]
[1731866868574,0.34465462,233.58,233.51,10.56483997]
[1731866869155,0.25098,233.56,233.51,10.56483997]
[1731866869650,0.09367462,233.55,233.51,10.56483997]
[1731866870253,4.2813,233.57,233.53,10.56483997]
[1731866870464,4.2813,233.57,233.55,10.56483997]
[1731866870966,0.09367462,233.56,233.55,10.56483997]
[1731866874271,0.09367462,233.56,233.53,10.56483997]
[1731866874478,0.09367462,233.61,233.53,10.56483997]
[1731866874675,4.62525462,233.61,233.53,10.56483997]
[1731866876453,4.62525462,233.61,233.48,10.7075]
[1731866876660,0.34465462,233.57,233.48,21.27233997]
[1731866876978,0.34465462,233.57,233.5,10.56483997]
[1731866878254,0.09367462,233.55,233.47,15.4449]
[1731866878455,0.34465462,233.55,233.49,10.56483997]
[1731866879871,0.09367462,233.53,233.49,10.56483997]
[1731866880072,0.09367462,233.53,233.41,16.138]
[1731866880073,0.12549,233.52,233.41,16.138]
[1731866880392,0.21916462,233.49,233.46,10.56483997]
[1731866880683,0.25098,233.53,233.48,10.56483997]
[1731866881458,0.09367462,233.52,233.46,10.56483997]
[1731866881664,0.09367462,233.5,233.46,10.56483997]
[1731866882064,0.34465462,233.5,233.44,10.56483997]
[1731866882573,0.34465462,233.5,233.42,10.56483997]
[1731866883862,0.09367462,233.48,233.42,10.56483997]
[1731866885482,0.09367462,233.48,233.4,10.56483997]
[1731866885483,0.21916462,233.46,233.4,10.56483997]
[1731866885680,0.21916462,233.46,233.38,10.56483997]
[1731866885887,0.09367462,233.42,233.38,10.56483997]
[1731866887081,4.37777462,233.42,233.38,10.56483997]
[1731866887987,0.09367462,233.4,233.36,10.56483997]
[1731866888489,0.09367462,233.4,233.36,6.7702234]
[1731866889187,0.09367462,233.38,233.36,6.7702234]
[1731866891192,0.09367462,233.4,233.34,6.7702234]
[1731866891496,0.09367462,233.38,233.34,6.7702234]
[1731866892478,6.7702234,233.43,233.34,6.7702234]
[1731866892479,4.2833,233.46,233.36,6.7702234]
[1731866892771,4.2824,233.51,233.44,6.7702234]
[1731866893085,4.2819,233.54,233.47,6.7702234]
[1731866893282,0.09367462,233.53,233.47,6.7702234]
[1731866894167,0.34465462,233.54,233.47,6.7702234]
[1731866894372,14.84982352,233.56,233.47,10.56832352]
[1731866894565,4.2815,233.56,233.49,10.56832352]
[1731866895069,4.2815,233.56,233.53,10.56832352]
[1731866895975,10.56832352,233.6,233.51,10.56832352]
[1731866896592,24.12153862,233.59,233.51,10.56832352]
[1731866896887,0.09367462,233.57,233.49,10.56832352]
[1731866897094,0.34465462,233.55,233.47,10.56832352]
[1731866897298,0.21916462,233.49,233.43,10.56832352]
[1731866897473,0.09367462,233.47,233.43,10.56832352]
[1731866898197,0.09367462,233.47,233.41,10.56832352]
[1731866898198,0.09367462,233.45,233.41,10.56832352]
[1731866898400,0.09367462,233.45,233.35,10.7132]
[1731866898401,0.09367462,233.45,233.39,10.56832352]
[1731866899399,0.09367462,233.43,233.39,10.56832352]
[1731866900406,0.34465462,233.43,233.36,10.56832352]
[1731866901482,0.34465462,233.41,233.36,10.56832352]
[1731866902498,0.21916462,233.39,233.36,10.56832352]
[1731866903793,4.37837462,233.39,233.36,10.56832352]
[1731866910104,0.09367462,233.37,233.36,10.56832352]
[1731866910310,0.09367462,233.37,233.34,10.56832352]
[1731866911086,4.37867462,233.37,233.34,10.56832352]
[1731866912588,0.09367462,233.37,233.36,10.56832352]
[1731866912793,0.12549,233.41,233.36,10.56832352]
[1731866912992,0.12549,233.42,233.36,10.56832352]
[1731866913691,0.21916462,233.41,233.36,10.56832352]
[1731866913896,0.09367462,233.39,233.38,10.56832352]
[1731866914104,4.2824,233.51,233.38,10.56832352]
[1731866914293,4.2824,233.51,233.45,10.56832352]
[1731866915714,0.09367462,233.5,233.45,10.56832352]
[1731866916295,0.34465462,233.48,233.45,10.56832352]
[1731866917613,4.62775462,233.48,233.45,10.56832352]
[1731866918094,4.62775462,233.48,233.43,10.56832352]
[1731866919093,4.62775462,233.48,233.41,10.56832352]
[1731866919790,0.34465462,233.46,233.39,10.56832352]
[1731866920118,10.91297814,233.46,233.39,10.56832352]
[1731866920918,0.34465462,233.44,233.39,10.56832352]
[1731866922215,0.34465462,233.42,233.39,10.56832352]
[1731866923104,4.62875462,233.42,233.39,10.56832352]
[1731866924328,4.2832,233.47,233.39,10.56832352]
[1731866924506,0.25098,233.46,233.39,10.56832352]
[1731866924710,0.21916462,233.45,233.39,10.56832352]
[1731866925025,0.12549,233.44,233.39,10.56832352]
[1731866925621,0.21916462,233.42,233.37,10.56832352]
[1731866927101,4.50326462,233.42,233.37,10.56832352]
[1731866927509,4.50326462,233.42,233.35,4.2853]
[1731866927818,4.50326462,233.42,233.37,10.56832352]
[1731866929604,0.21916462,233.4,233.37,10.56832352]
[1731866930319,0.12549,233.39,233.35,10.56832352]
[1731866930496,4.50406462,233.38,233.35,10.56832352]
[1731866931218,0.09367462,233.37,233.35,10.56832352]
[1731866932204,0.09367462,233.37,233.36,6.7701901]
[1731866934399,0.25098,233.43,233.36,6.7701901]
[1731866934723,0.25098,233.43,233.38,6.7701901]
[1731866935221,0.09367462,233.42,233.38,6.7701901]
[1731866935420,0.21916462,233.4,233.38,6.7701901]
[1731866936502,0.09367462,233.39,233.38,6.7701901]
[1731866936730,0.09367462,233.39,233.36,6.7701901]
[1731866937417,0.12549,233.43,233.38,6.7701901]
[1731866937418,4.284,233.43,233.38,6.7701901]
[1731866937628,4.284,233.43,233.4,6.7701901]
[1731866938117,0.09367462,233.42,233.38,6.7701901]
[1731866938505,4.37787462,233.42,233.38,6.7701901]
[1731866939239,4.37787462,233.42,233.36,6.7701901]
[1731866940233,4.37787462,233.42,233.34,4.2855]
[1731866940234,0.09367462,233.4,233.34,6.7701901]
[1731866940723,4.2846,233.39,233.33,10.7144]
[1731866940924,0.09367462,233.4,233.33,10.7144]
[1731866940925,0.09367462,233.4,233.36,6.7701901]
[1731866941452,4.37817462,233.4,233.36,6.7701901]
[1731866941819,0.09367462,233.4,233.36,6.7701901]
[1731866942822,4.37817462,233.4,233.36,6.7701901]
[1731866943024,0.09367462,233.38,233.34,6.7701901]
[1731866943239,0.09367462,233.38,233.29,10.7162]
[1731866943240,0.09367462,233.38,233.32,6.7701901]
[1731866943445,0.09367462,233.38,233.29,10.7162]
[1731866943644,0.09367462,233.38,233.28,16.1854]
[1731866943826,0.12549,233.35,233.28,16.1854]
[1731866944026,0.09367462,233.34,233.28,16.1854]
[1731866944244,0.09367462,233.32,233.22,15.6079]
[1731866944445,6.86386472,233.34,233.25,6.7701901]
[1731866944446,0.21916462,233.3,233.25,6.7701901]
[1731866945148,4.2865,233.29,233.25,6.7701901]
[1731866945526,0.09367462,233.28,233.25,6.7701901]
[1731866945848,0.09367462,233.28,233.22,19.8955]
[1731866945849,0.34465462,233.28,233.22,15.6079]
[1731866946051,0.09367462,233.28,233.24,6.7701901]
[1731866946354,0.09367462,233.28,233.26,6.7701901]
[1731866949452,0.34465462,233.31,233.23,6.7701901]
[1731866950483,0.34465462,233.31,233.25,6.7701901]
[1731866950629,4.63085462,233.31,233.27,6.7701901]
[1731866950957,4.37987462,233.31,233.27,6.7701901]
[1731866954165,4.37987462,233.31,233.29,6.7701901]
[1731866954546,0.09367462,233.29,233.2,15.6079]
[1731866954732,0.09367462,233.29,233.21,6.7701901]
[1731866954933,0.09367462,233.29,233.23,6.7701901]
[1731866955135,0.09367462,233.29,233.27,6.7701901]
[1731866955356,0.09367462,233.29,233.2,30.6163]
[1731866955542,0.09367462,233.29,233.25,6.7701901]
[1731866956137,0.09367462,233.29,233.27,6.7701901]
[1731866956348,4.2852,233.36,233.27,6.7701901]
[1731866956661,4.2852,233.36,233.29,6.7701901]
[1731866957246,4.2852,233.36,233.31,6.7701901]
[1731866957755,4.2852,233.36,233.33,6.7701901]
[1731866957939,0.09367462,233.35,233.33,6.7701901]
[1731866958537,0.09367462,233.36,233.33,6.7701901]
[1731866959165,0.09367462,233.36,233.27,15.0038]
[1731866959345,0.09367462,233.36,233.32,6.7701901]
[1731866960251,0.09367462,233.38,233.32,6.7701901]
[1731866961451,0.09367462,233.36,233.32,6.7701901]
[1731866961643,0.34465462,233.32,233.2,15.6079]
[1731866961855,0.34465462,233.28,233.2,22.3780901]
[1731866962972,0.34465462,233.28,233.22,6.7701901]
[1731866963175,0.09367462,233.26,233.2,15.6079]
[1731866963458,0.34465462,233.26,233.18,0.4779129]
[1731866963665,0.34465462,233.19,233.18,0.4779129]
[1731866963844,0.25098,233.26,233.18,0.4779129]
[1731866964045,0.09367462,233.23,233.18,7.248103]
[1731866964370,0.09367462,233.21,233.18,7.248103]
[1731866964961,0.34465462,233.23,233.18,7.248103]
[1731866965156,0.09367462,233.21,233.18,7.248103]
[1731866966444,0.09367462,233.2,233.18,7.248103]
[1731866966747,0.09367462,233.2,233.18,0.4779129]
[1731866967462,0.09367462,233.22,233.18,0.4779129]
[1731866967660,4.38137462,233.22,233.18,0.4779129]
[1731866969076,4.2865,233.29,233.21,6.7701901]
[1731866969242,4.2855,233.34,233.28,6.7701901]
[1731866969440,0.09367462,233.33,233.28,6.7701901]
[1731866970250,4.2852,233.36,233.28,6.7701901]
[1731866970446,6.86386472,233.35,233.28,6.7701901]
[1731866971350,0.34465462,233.33,233.28,6.7701901]
[1731866971571,0.34465462,233.33,233.21,15.7537]
[1731866971572,0.34465462,233.28,233.21,15.7537]
[1731866971869,0.34465462,233.28,233.21,22.5238901]
[1731866972248,0.34465462,233.28,233.21,26.3449923]
[1731866972657,10.93594692,233.28,233.19,10.5912923]
[1731866973064,0.34465462,233.26,233.19,10.5912923]
[1731866973568,0.34465462,233.24,233.19,10.5912923]
[1731866974857,0.34465462,233.24,233.18,0.4779129]
[1731866975172,0.34465462,233.2,233.18,0.4779129]
[1731866975471,4.63285462,233.2,233.18,0.4779129]
[1731866977482,4.2874,233.24,233.18,11.0692052]
[1731866977684,0.25098,233.26,233.18,11.0692052]
[1731866977982,0.09367462,233.25,233.18,11.0692052]
[1731866979566,0.34465462,233.23,233.18,11.0692052]
[1731866981059,0.34465462,233.23,233.2,10.5912923]
[1731866981687,4.63235462,233.23,233.2,10.5912923]
[1731866982367,4.63235462,233.23,233.18,0.4779129]
[1731866982368,4.63235462,233.23,233.18,11.0692052]
[1731866985390,0.25098,233.24,233.2,10.5912923]
[1731866985561,0.09367462,233.23,233.2,10.5912923]
[1731866986194,0.09367462,233.23,233.18,0.4779129]
[1731866986483,4.38137462,233.23,233.19,10.5912923]
[1731866987483,4.38137462,233.23,233.18,0.4779129]
[1731866989676,0.09367462,233.21,233.18,0.4779129]
[1731866991764,0.09367462,233.19,233.18,0.4779129]
[1731866992789,24.12153862,233.19,233.18,0.4779129]
[1731866994192,4.2881,233.2,233.18,0.4779129]
[1731866994394,30.56319622,233.19,233.18,0.4779129]
[1731866994890,30.65687084,233.19,233.18,0.4779129]
[1731866995571,30.90785084,233.19,233.18,0.4779129]
[1731866995967,35.5638631,233.19,233.18,0.4779129]
[1731866996795,65.5638631,233.19,233.18,0.4779129]
[1731866997589,35.5638631,233.19,233.18,0.4779129]
[1731866997965,28.77755088,233.19,233.18,0.4779129]
[1731866998171,35.5638631,233.19,233.18,0.4779129]
[1731867000986,65.5638631,233.19,233.18,0.4779129]
[1731867001186,72.19654596,233.19,233.18,0.4779129]
[1731867001578,72.19654596,233.19,233.18,1.29e-05]
[1731867001771,24.09604862,233.18,233.02,16.1997]
[1731867001971,0.21916462,233.1,233.02,22.98601222]
[1731867002399,23.99604862,233.1,233.02,22.98601222]
[1731867002596,0.21916462,233.08,233.02,16.1997]
[1731867003394,0.21916462,233.06,233.02,16.1997]
[1731867004472,173.022,233.17,233.05,6.78631222]
[1731867004676,4.289,233.15,233.08,6.78631222]
[1731867004886,11.07531222,233.15,233.08,6.78631222]
[1731867005398,0.09367462,233.14,233.06,6.78631222]
[1731867005605,4.2894,233.13,233.06,6.78631222]
[1731867005895,0.09367462,233.12,233.06,6.78631222]
[1731867006278,0.34465462,233.12,233.06,6.78631222]
[1731867006901,4.2898,233.11,233.02,31.2197]
[1731867007195,4.2898,233.11,233.06,6.78631222]
[1731867007394,0.09367462,233.1,233.06,6.78631222]
[1731867007899,0.34465462,233.1,233.02,16.1997]
[1731867008191,0.34465462,233.1,233.03,6.78631222]
[1731867008395,24.12153862,233.1,233.02,16.1997]
[1731867008893,0.34465462,233.1,233.05,6.78631222]
[1731867009093,4.2901,233.09,233.05,6.78631222]
[1731867010181,4.2899,233.11,233.05,6.78631222]
[1731867010391,4.289,233.15,233.07,6.78631222]
[1731867011702,0.21916462,233.14,233.07,6.78631222]
[1731867011905,7.13096684,233.14,233.07,6.78631222]
[1731867012407,7.13096684,233.14,233.06,6.78631222]
[1731867012578,7.13096684,233.14,233.04,6.78631222]
[1731867012782,0.09367462,233.11,233.04,6.78631222]
[1731867013001,0.34465462,233.11,233.02,16.1997]
[1731867013190,0.34465462,233.11,233.03,6.78631222]
[1731867013506,0.34465462,233.09,233.03,6.78631222]
[1731867014208,0.34465462,233.09,233.02,22.98601222]
[1731867014509,0.09367462,233.07,233.02,22.98601222]
[1731867015879,0.09367462,233.08,233.02,16.1997]
[1731867016078,4.2907,233.06,233.02,22.98601222]
[1731867017575,4.2907,233.06,233.02,16.1997]
[1731867017774,4.2907,233.06,233.02,22.98601222]
[1731867018408,4.2907,233.06,233.04,6.78631222]
[1731867020081,4.2892,233.14,233.04,6.78631222]
[1731867020291,11.07551222,233.14,233.04,6.78631222]
[1731867020489,4.2892,233.14,233.06,6.78631222]
[1731867021187,0.09367462,233.13,233.06,6.78631222]
[1731867021818,4.2896,233.12,233.06,6.78631222]
[1731867023881,4.38287462,233.14,233.06,6.78631222]
[1731867025306,4.2892,233.14,233.06,11.07691222]
[1731867025484,4.2892,233.14,233.08,6.78631222]
[1731867026012,4.2892,233.14,233.08,11.07651222]
[1731867026310,10.7202,233.21,233.08,11.07651222]
[1731867026502,10.7202,233.21,233.09,15.2361]
[1731867026503,4.2881,233.2,233.09,15.2361]
[1731867026805,6.78631222,233.17,233.09,15.2361]
[1731867028613,7.03729222,233.18,233.09,15.2361]
[1731867029086,0.09367462,233.17,233.09,15.2361]
[1731867029287,4.2883,233.19,233.09,15.2361]
[1731867029486,10.7204,233.2,233.09,15.2361]
[1731867029688,6.78631222,233.19,233.1,6.78631222]
[1731867030096,0.21916462,233.18,233.1,6.78631222]
[1731867030788,11.07501222,233.17,233.09,15.2361]
[1731867032014,11.07501222,233.17,233.09,12.324898]
[1731867033796,11.07501222,233.17,233.09,19.11121022]
[1731867034193,11.07501222,233.17,233.09,12.324898]
[1731867034710,4.289,233.15,233.09,12.324898]
[1731867035010,0.34465462,233.14,233.09,12.324898]
[1731867035394,6.78631222,233.13,233.09,12.324898]
[1731867036987,4.2896,233.12,233.09,12.324898]
[1731867038012,4.29,233.1,233.09,12.324898]
[1731867038198,4.29,233.1,233.04,15.0772]
[1731867039188,4.63425462,233.12,233.04,15.0772]
[1731867039597,4.63425462,233.12,233.04,21.86351222]
[1731867040115,0.21916462,233.1,233.04,15.0772]
[1731867040411,4.2896,233.12,233.05,6.78631222]
[1731867040593,4.2896,233.12,233.04,15.0772]
[1731867040793,4.2896,233.12,233.05,6.78631222]
[1731867041117,0.09367462,233.09,233.04,15.0772]
[1731867041299,0.34465462,233.09,233.04,15.0772]
[1731867041612,4.29,233.1,233.04,15.0772]
[1731867043500,4.2889,233.16,233.08,6.78631222]
[1731867043704,4.2889,233.16,233.11,6.78631222]
[1731867044597,4.2883,233.19,233.11,6.78631222]
[1731867045416,0.09367462,233.18,233.11,6.78631222]
[1731867045617,4.2883,233.19,233.11,6.78631222]
[1731867045822,0.09367462,233.18,233.06,4.2906]
[1731867046000,0.09367462,233.18,233.09,6.78631222]
[1731867046491,0.34465462,233.18,233.05,15.0182]
[1731867046695,0.09367462,233.16,233.08,6.78631222]
[1731867047091,6.78631222,233.15,233.06,6.78631222]
[1731867047312,0.09367462,233.14,233.06,6.78631222]
[1731867047825,11.07571222,233.13,233.04,21.86351222]
[1731867048041,6.78631222,233.11,233.04,15.0772]
[1731867048514,0.09367462,233.1,233.04,15.0772]
[1731867048719,0.09367462,233.08,233.04,15.0772]
[1731867049405,0.09367462,233.08,233.0,6.78631222]
[1731867049604,4.2905,233.07,233.0,6.78631222]
[1731867050105,4.2905,233.07,232.99,15.0442]
[1731867050304,4.2905,233.07,233.0,6.78631222]
[1731867050821,4.2905,233.07,232.99,21.83051222]
[1731867051324,0.09367462,233.06,232.99,15.0442]
[1731867051498,0.34465462,233.06,232.99,15.0442]
[1731867051836,4.2909,233.05,232.99,15.0442]
[1731867055413,0.09367462,233.02,232.95,0.4779129]
[1731867055634,6.78631222,233.0,232.95,0.4779129]
[1731867055834,0.09367462,233.01,232.95,0.4779129]
[1731867056136,6.78631222,233.04,232.95,0.4779129]
[1731867056737,6.78631222,233.02,232.95,0.4779129]
[1731867057113,4.2916,233.01,232.95,0.4779129]
[1731867058057,0.34465462,233.0,232.95,0.4779129]
[1731867059036,7.13096684,233.0,232.95,0.4779129]
[1731867059237,0.09367462,232.98,232.95,0.4779129]
[1731867059447,11.20290222,233.04,232.95,7.26422512]
[1731867059635,11.20290222,233.04,232.97,6.78631222]
[1731867060026,0.09367462,233.03,232.97,6.78631222]
[1731867060351,4.2911,233.04,232.97,6.78631222]
[1731867061636,4.2911,233.04,232.99,6.78631222]
[1731867062049,4.2911,233.04,233.01,6.78631222]
[1731867062429,4.2908,233.06,233.01,6.78631222]
[1731867062860,8.2203,233.12,233.03,6.78631222]
[1731867063037,4.2898,233.11,233.03,6.78631222]
[1731867063358,4.2898,233.11,233.01,15.5319]
[1731867063560,4.2898,233.11,233.04,6.78631222]
[1731867063856,11.07611222,233.11,233.04,6.78631222]
[1731867065364,0.09367462,233.08,233.01,22.31821222]
[1731867065853,4.2901,233.09,233.01,22.31821222]
[1731867067661,4.2901,233.09,233.03,6.78631222]
[1731867068036,4.2901,233.09,233.01,15.5319]
[1731867068037,4.2901,233.09,233.05,6.78631222]
[1731867069032,4.2901,233.09,233.01,15.5319]
[1731867069231,4.2901,233.09,233.02,6.78631222]
[1731867069457,4.2901,233.09,233.04,6.78631222]
[1731867069957,4.2901,233.09,233.06,6.78631222]
[1731867070456,4.41469,233.14,233.08,6.78631222]
[1731867070650,4.2892,233.14,233.08,6.78631222]
[1731867071137,0.09367462,233.13,233.08,6.78631222]
[1731867071456,4.2896,233.12,233.08,6.78631222]
[1731867072631,4.289,233.15,233.08,6.78631222]
[1731867073657,4.2887,233.17,233.08,6.78631222]
[1731867073848,0.09367462,233.15,233.01,15.5319]
[1731867074043,0.09367462,233.15,233.06,6.78631222]
[1731867074553,0.09367462,233.15,233.08,6.78631222]
[1731867074758,0.09367462,233.15,233.02,15.0199]
[1731867074943,0.09367462,233.13,233.05,6.78631222]
[1731867075459,0.21916462,233.13,233.05,6.78631222]
[1731867076157,4.2896,233.12,233.05,6.78631222]
[1731867076554,11.07591222,233.12,233.05,6.78631222]
[1731867076753,11.07591222,233.12,233.02,10.7286]
[1731867076955,0.21916462,233.11,233.03,6.78631222]
[1731867078167,4.29,233.1,233.03,6.78631222]
[1731867081760,4.03902188,233.1,233.03,6.78631222]
[1731867083763,4.2889,233.16,233.07,6.78631222]
[1731867083974,0.09367462,233.14,233.07,6.78631222]
[1731867084269,0.09367462,233.14,233.03,4.2912]
[1731867084270,6.78631222,233.13,233.03,11.07751222]
[1731867084640,0.09367462,233.12,233.03,17.51451222]
[1731867086154,4.2898,233.11,233.03,17.51451222]
[1731867086763,4.2898,233.11,233.05,6.78631222]
[1731867089665,4.2887,233.17,233.08,6.78631222]
[1731867089855,4.2887,233.17,233.12,6.78631222]
[1731867090245,6.78631222,233.18,233.06,23.776884]
[1731867090480,6.78631222,233.18,233.08,6.78631222]
[1731867090771,0.09367462,233.17,233.08,6.78631222]
[1731867091370,15.0078,233.21,233.1,6.78631222]
[1731867091668,0.09367462,233.18,233.1,6.78631222]
[1731867092047,0.21916462,233.18,233.1,6.78631222]
[1731867093347,4.2887,233.17,233.1,6.78631222]
[1731867094343,4.2887,233.17,233.12,6.78631222]
[1731867095353,4.2887,233.17,233.1,6.78631222]